bitfinex/quotes_SOLUSD_20241115
["timestamp","ask_amount","ask_price","bid_price","bid_amount"]
[1731705486211,20.1111551,217.98,217.91,20.20482972]
[1731705486522,20.1111551,217.98,217.93,4.68227462]
[1731705487409,20.1111551,217.98,217.93,16.15377462]
[1731705489026,10.5,218.0,217.95,0.09367462]
[1731705489234,10.5,218.0,217.98,20.1111551]
[1731705489409,10.5,218.0,217.99,20.45580972]
[1731705489733,10.5,218.0,217.97,0.25098]
[1731705489940,10.5,218.0,217.94,0.25098]
[1731705490120,20.1111551,217.99,217.94,0.25098]
[1731705490307,10.5,218.0,217.93,16.0601]
[1731705490308,20.1111551,217.98,217.93,16.0601]
[1731705490610,20.1111551,217.97,217.93,11.4715]
[1731705490805,10.5,218.0,217.96,20.1111551]
[1731705491010,10.5,218.0,217.94,0.25098]
[1731705491011,10.5,218.0,217.98,20.1111551]
[1731705491221,10.5,218.0,217.97,27.37559284]
[1731705491409,10.5,218.0,217.97,7.26443774]
[1731705491824,10.5,218.0,217.97,11.85213774]
[1731705492129,10.5,218.0,217.97,31.96329284]
[1731705492731,10.5,218.0,217.97,11.85213774]
[1731705493725,30.6111551,218.0,217.94,7.04861435]
[1731705493927,10.5,218.0,217.95,4.588]
[1731705494102,20.1111551,217.99,217.93,16.0599]
[1731705494305,10.5,218.0,217.93,16.0599]
[1731705494306,10.5,218.0,217.94,21.02854101]
[1731705494527,10.5,218.0,217.95,0.09367462]
[1731705494710,30.6111551,218.0,217.95,0.09367462]
[1731705494906,30.6111551,218.0,217.95,6.73801009]
[1731705495130,10.5,218.0,217.95,6.73801009]
[1731705495333,10.5,218.0,217.97,0.09367462]
[1731705495629,10.5,218.0,217.97,4.68127462]
[1731705496834,10.5,218.0,217.99,0.09367462]
[1731705502722,10.5,218.0,217.98,4.83838]
[1731705502929,12.49488465,217.99,217.97,16.0571]
[1731705503120,10.5,218.0,217.98,0.09367462]
[1731705503313,12.49488465,217.99,217.98,0.09367462]
[1731705503515,12.49488465,217.99,217.93,16.0601]
[1731705503817,12.49488465,217.98,217.93,16.0601]
[1731705504631,12.49488465,217.98,217.95,4.5882]
[1731705504833,10.5,218.0,217.98,0.25098]
[1731705505018,10.5,218.0,217.99,0.09367462]
[1731705505829,10.5,218.0,217.99,6.81150397]
[1731705506040,10.5,218.0,217.99,0.34465462]
[1731705506619,10.5,218.0,217.99,4.93195462]
[1731705507517,13.0359,218.14,217.99,4.93195462]
[1731705507518,6.58520169,218.19,218.15,0.1]
[1731705507714,6.58520169,218.19,217.99,70.70328]
[1731705507715,12.49488465,218.19,218.18,0.1]
[1731705508324,12.49488465,218.19,218.13,0.1]
[1731705508529,12.49488465,218.14,218.13,0.1]
[1731705510036,12.49488465,218.14,218.06,11.4642]
[1731705510037,15.70388465,218.14,218.12,0.1]
[1731705510218,12.49488465,218.13,218.12,0.1]
[1731705510827,19.9760778,218.13,218.1,0.1]
[1731705511240,19.9760778,218.11,218.1,0.1]
[1731705511545,19.9760778,218.13,218.11,0.1]
[1731705511840,19.9760778,218.16,218.15,0.1]
[1731705512243,23.1845778,218.17,218.14,0.1]
[1731705512433,23.1845778,218.17,218.15,0.1]
[1731705513139,23.1845778,218.17,218.14,0.1]
[1731705513444,23.1845778,218.17,218.03,0.1]
[1731705513445,19.9760778,218.18,218.16,0.1]
[1731705514337,23.1844778,218.18,218.16,0.1]
[1731705515748,3.2084,218.18,218.16,0.1]
[1731705517322,19.9760778,218.19,218.16,0.1]
[1731705517522,23.1842778,218.19,218.16,0.1]
[1731705519255,3.2082,218.19,218.16,0.1]
[1731705519550,2.7082,218.19,218.16,0.1]
[1731705520356,19.9760778,218.21,218.16,0.1]
[1731705520529,23.1837778,218.22,218.18,0.1]
[1731705520736,3.2077,218.22,218.18,0.1]
[1731705521139,23.1837778,218.22,218.18,0.1]
[1731705523433,3.2077,218.22,218.18,0.1]
[1731705523951,3.2077,218.22,218.16,19.9760778]
[1731705523952,23.1836778,218.23,218.2,0.1]
[1731705524530,3.2076,218.23,218.2,0.1]
[1731705525342,19.9760778,218.24,218.2,0.1]
[1731705527048,19.9760778,218.23,218.2,0.1]
[1731705527538,19.9760778,218.22,218.15,20.1760778]
[1731705527744,19.9760778,218.16,218.08,0.1]
[1731705527953,30.6102,218.16,218.06,0.1]
[1731705528268,30.6102,218.16,218.04,0.1]
[1731705528269,20.0,218.15,218.04,0.1]
[1731705528634,20.0,218.15,218.05,0.1]
[1731705528830,20.0,218.13,217.98,0.1]
[1731705529035,20.0,218.13,217.97,0.1]
[1731705529036,19.9760778,218.04,218.0,0.2]
[1731705529253,39.9760778,218.13,218.02,0.1]
[1731705529254,19.9760778,218.08,218.02,0.1]
[1731705529431,30.6102,218.16,218.05,0.1]
[1731705529432,19.9760778,218.1,218.05,0.1]
[1731705529629,23.1856778,218.09,218.05,0.1]
[1731705529867,3.2096,218.09,218.05,0.1]
[1731705530551,19.9760778,218.12,218.06,0.1]
[1731705531262,19.9760778,218.11,218.06,0.1]
[1731705531756,3.2095,218.1,218.06,0.1]
[1731705532855,38.6319,218.16,218.06,0.1]
[1731705532856,12.48559311,218.12,218.06,0.1]
[1731705534053,12.48559311,218.11,218.06,0.1]
[1731705534251,12.48559311,218.12,218.06,0.1]
[1731705535360,3.2093,218.11,218.07,0.1]
[1731705535559,3.2093,218.11,218.07,12.58559311]
[1731705536145,3.2093,218.11,218.07,12.48559311]
[1731705536345,3.2093,218.11,218.08,0.1]
[1731705537060,3.2091,218.13,218.09,12.48559311]
[1731705537438,3.2088,218.15,218.09,12.48559311]
[1731705537839,15.69439311,218.15,218.08,12.58559311]
[1731705538945,12.48559311,218.13,218.07,0.1]
[1731705539648,12.48559311,218.14,218.07,0.1]
[1731705539859,16.0534,218.13,218.07,12.58559311]
[1731705540737,28.53899311,218.13,218.07,0.1]
[1731705541446,3.2092,218.12,218.07,0.1]
[1731705541747,3.2092,218.12,218.02,16.0534]
[1731705541748,12.48559311,218.11,218.08,0.1]
[1731705541958,12.48559311,218.11,218.04,12.48559311]
[1731705541959,12.48559311,218.11,218.05,0.1]
[1731705542273,16.0534,218.13,218.12,0.1]
[1731705542438,12.48559311,218.2,218.14,0.2]
[1731705542639,12.48559311,218.22,218.16,0.1]
[1731705542962,12.48559311,218.2,218.12,0.1]
[1731705543263,12.48559311,218.19,218.12,0.1]
[1731705543439,12.48559311,218.17,218.1,0.1]
[1731705543846,3.2083,218.18,218.11,0.1]
[1731705544156,3.2083,218.18,218.13,0.1]
[1731705544537,3.2083,218.18,218.15,0.1]
[1731705545050,3.2083,218.18,218.13,0.1]
[1731705545359,23.2074,218.24,218.15,0.1]
[1731705545565,12.48559311,218.21,218.15,0.1]
[1731705546064,3.2074,218.24,218.18,12.48559311]
[1731705546247,12.485593,218.25,218.2,12.48559311]
[1731705546643,12.485593,218.25,218.19,0.1]
[1731705547653,24.97118611,218.25,218.19,0.1]
[1731705547865,28.17848611,218.25,218.19,0.1]
[1731705548063,28.17848611,218.25,218.15,4.5838]
[1731705548064,12.48559311,218.23,218.15,0.1]
[1731705548367,12.48559311,218.16,218.07,0.1]
[1731705548569,12.48559311,218.24,218.06,31.1597]
[1731705548570,12.48559311,218.12,218.06,31.1597]
[1731705548738,12.48559311,218.13,218.08,0.1]
[1731705549138,20.0,218.18,218.06,31.1597]
[1731705549344,12.48559311,218.1,218.06,31.0597]
[1731705549555,12.48559311,218.07,218.06,0.1]
[1731705549760,12.48559311,218.07,218.03,0.1]
[1731705550063,12.48559311,218.05,218.01,0.1]
[1731705550264,12.48559311,218.03,217.99,0.1]
[1731705550468,3.21,218.07,217.96,4.5879]
[1731705550469,12.48559311,218.0,217.96,0.1]
[1731705550771,3.2092,218.12,218.03,0.1]
[1731705550975,3.2085,218.17,218.08,0.1]
[1731705551268,3.2085,218.17,218.09,0.1]
[1731705551565,3.2085,218.17,217.96,45.6192028]
[1731705551566,0.09367462,218.16,217.99,0.1]
[1731705551743,12.48559311,218.0,217.96,31.193]
[1731705551943,12.48559311,217.97,217.93,0.1]
[1731705552156,13.1892,218.12,218.02,0.2]
[1731705552366,31.3666,218.14,218.04,0.2]
[1731705552691,12.48559311,218.07,218.02,0.2]
[1731705552870,31.3666,218.14,218.02,0.2]
[1731705553356,31.3666,218.14,217.93,16.06]
[1731705553357,0.09367462,218.12,217.98,0.1]
[1731705553553,0.09367462,218.12,217.96,0.2]
[1731705553860,12.48559311,218.08,218.01,12.58559311]
[1731705554063,12.48559311,218.09,218.03,0.1]
[1731705554359,12.48559311,218.08,218.03,0.1]
[1731705554563,12.48559311,218.07,218.03,0.1]
[1731705555345,15.69559311,218.07,218.03,0.1]
[1731705555552,12.48559311,218.08,218.03,0.1]
[1731705555768,12.48559311,218.07,218.03,0.1]
[1731705556069,3.2097,218.09,217.94,96.43469749]
[1731705556258,12.48559311,217.97,217.94,0.1]
[1731705556464,20.0,218.07,217.95,0.1]
[1731705556773,20.00115027,217.98,217.95,0.1]
[1731705557145,20.00115027,217.97,217.95,0.1]
[1731705557370,20.00115027,217.96,217.93,0.1]
[1731705557578,3.2109,218.01,217.95,0.1]
[1731705557867,20.00115027,217.98,217.94,0.1]
[1731705558064,3.2106,218.03,217.98,0.1]
[1731705558288,20.00115027,218.01,217.98,0.1]
[1731705558771,20.00115027,218.0,217.98,0.1]
[1731705558947,3.2106,218.03,217.98,0.1]
[1731705558948,20.00115027,218.01,217.98,0.1]
[1731705559146,20.00115027,218.0,217.96,0.1]
[1731705559343,3.2109,218.01,217.96,0.1]
[1731705559344,20.00115027,217.99,217.96,0.1]
[1731705559560,20.00115027,217.98,217.94,0.1]
[1731705559790,20.00115027,217.99,217.94,0.1]
[1731705560572,20.00115027,218.0,217.96,0.1]
[1731705561148,20.00115027,218.01,217.96,0.1]
[1731705561571,20.00115027,217.99,217.96,0.1]
[1731705561778,20.00115027,217.99,217.95,0.1]
[1731705561779,20.00115027,217.99,217.97,0.1]
[1731705562163,20.00115027,218.0,217.95,0.2]
[1731705562355,20.00115027,218.0,217.97,0.1]
[1731705562555,3.2098,218.08,218.01,0.1]
[1731705562866,20.00115027,218.06,218.02,0.1]
[1731705564070,23.21095027,218.08,218.02,0.1]
[1731705565362,20.00115027,218.1,218.05,0.1]
[1731705565673,23.21035027,218.12,218.07,0.1]
[1731705566051,23.21035027,218.12,218.08,0.1]
[1731705568271,20.0,218.18,218.08,0.1]
[1731705568477,20.00115027,218.13,218.08,0.1]
[1731705569472,23.2083,218.18,218.1,0.1]
[1731705569473,20.00115027,218.16,218.1,0.1]
[1731705570054,20.00115027,218.16,218.11,0.1]
[1731705571079,3.2088,218.15,218.11,0.1]
[1731705572557,20.00115027,218.12,218.09,0.1]
[1731705573169,20.00115027,218.12,218.08,0.1]
[1731705573377,20.00115027,218.12,218.1,0.1]
[1731705573789,23.21035027,218.12,218.1,0.1]
[1731705575063,3.2092,218.12,218.1,0.1]
[1731705575383,20.00115027,218.15,218.1,0.1]
[1731705575568,20.00115027,218.15,218.1,0.2]
[1731705575767,20.00115027,218.14,218.1,0.2]
[1731705576082,20.00115027,218.14,218.1,0.1]
[1731705576473,20.00115027,218.17,218.12,0.1]
[1731705577062,11.2266,218.23,218.12,0.2]
[1731705577063,20.00115027,218.18,218.12,0.2]
[1731705577402,11.2266,218.23,218.14,0.2]
[1731705577403,20.00115027,218.19,218.14,0.2]
[1731705577565,23.20945027,218.19,218.14,0.2]
[1731705578290,3.2083,218.19,218.17,0.1]
[1731705578780,15.68253779,218.21,218.17,0.1]
[1731705579166,0.4290549,218.26,218.19,0.1]
[1731705579379,3.208,218.2,218.17,0.2]
[1731705579560,0.4290549,218.26,218.17,0.2]
[1731705579561,12.47453779,218.23,218.17,0.2]
[1731705580088,15.68213779,218.23,218.17,0.2]
[1731705581285,15.68213779,218.23,218.2,0.1]
[1731705581787,12.47453779,218.21,218.16,0.1]
[1731705581988,3.2076,218.23,218.16,0.1]
[1731705581989,12.47453779,218.19,218.16,0.1]
[1731705582287,0.4290549,218.26,218.2,0.1]
[1731705582488,12.47453779,218.25,218.2,0.1]
[1731705583176,0.4290549,218.26,218.17,32.9028]
[1731705583177,12.47453779,218.23,218.17,32.9028]
[1731705583387,12.47453779,218.21,218.17,32.9028]
[1731705583567,12.47453779,218.21,218.19,0.1]
[1731705583771,12.47453779,218.21,218.17,32.9028]
[1731705583975,12.47453779,218.19,218.16,0.1]
[1731705584790,12.47453779,218.19,218.14,0.1]
[1731705585265,3.208,218.21,218.12,31.4243]
[1731705585466,12.47453779,218.18,218.14,0.1]
[1731705585769,12.47453779,218.19,218.14,0.1]
[1731705586186,3.2083,218.18,218.14,0.1]
[1731705588195,12.47453779,218.22,218.17,0.1]
[1731705588488,15.68193779,218.24,218.2,0.1]
[1731705588698,15.68193779,218.24,218.18,0.1]
[1731705588986,12.47453779,218.23,218.18,0.1]
[1731705589379,12.47453779,218.35,218.18,0.1]
[1731705589380,12.47453779,218.33,218.25,0.1]
[1731705589574,3.2064,218.31,218.25,12.57453779]
[1731705589775,3.2066,218.3,218.25,12.57453779]
[1731705590500,3.2069,218.28,218.25,0.1]
[1731705591291,8.0143,218.36,218.25,12.57453779]
[1731705591292,12.47453779,218.33,218.25,12.57453779]
[1731705591475,3.2065,218.31,218.25,12.57453779]
[1731705594579,15.68073779,218.33,218.25,12.57453779]
[1731705595098,3.2062,218.33,218.25,12.57453779]
[1731705595283,12.47453779,218.33,218.25,12.57453779]
[1731705596097,3.2064,218.31,218.25,12.57453779]
[1731705597727,12.47453779,218.33,218.25,12.57453779]
[1731705598076,3.2064,218.31,218.25,12.57453779]
[1731705598686,9.92195336,218.42,218.39,0.1]
[1731705598970,15.67933779,218.42,218.37,0.2]
[1731705599171,15.67933779,218.42,218.37,0.1]
[1731705599597,12.47453779,218.44,218.39,0.2]
[1731705600703,3.2046,218.43,218.39,0.2]
[1731705602691,12.47453779,218.42,218.39,0.1]
[1731705603198,12.47453779,218.41,218.37,0.1]
[1731705603399,12.47453779,218.4,218.37,0.1]
[1731705603575,12.47453779,218.4,218.37,0.2]
[1731705603784,12.47453779,218.4,218.34,0.2]
[1731705604097,12.47453779,218.4,218.37,0.1]
[1731705604679,12.47453779,218.4,218.35,0.1]
[1731705605297,8.0117,218.43,218.36,0.1]
[1731705605507,12.47453779,218.42,218.36,0.1]
[1731705605805,12.47453779,218.39,218.36,0.2]
[1731705605974,12.47453779,218.4,218.38,0.1]
[1731705606179,12.47453779,218.41,218.38,0.1]
[1731705606481,3.2049,218.41,218.38,0.1]
[1731705606795,3.2049,218.41,218.39,0.1]
[1731705606995,3.2047,218.43,218.41,0.1]
[1731705607483,3.2047,218.43,218.39,0.1]
[1731705607484,3.2047,218.43,218.39,0.2]
[1731705607682,3.2047,218.43,218.41,0.1]
[1731705608299,15.67893779,218.45,218.41,0.1]
[1731705608498,3.2044,218.45,218.41,0.1]
[1731705608689,3.2044,218.45,218.42,0.1]
[1731705609692,3.2044,218.45,218.44,0.1]
[1731705610506,0.4290549,218.48,218.44,0.1]
[1731705610811,3.2041,218.47,218.43,0.1]
[1731705610987,3.2041,218.47,218.44,0.1]
[1731705612077,0.4290549,218.48,218.46,12.57453779]
[1731705612278,0.11420924,218.48,218.45,0.1]
[1731705612482,0.11420924,218.48,218.38,11.4477]
[1731705612483,3.2041,218.47,218.38,0.2]
[1731705612781,3.2041,218.47,218.39,0.1]
[1731705612782,11.2143,218.47,218.39,0.1]
[1731705612980,3.2041,218.47,218.44,0.2]
[1731705613186,0.11420924,218.48,218.47,0.1]
[1731705613683,0.11420924,218.48,218.42,43.2099]
[1731705613684,0.11420924,218.48,218.43,0.09367462]
[1731705613889,0.11420924,218.48,218.47,12.47453779]
[1731705614704,0.11420924,218.48,218.47,17.05173779]
[1731705615990,0.11420924,218.48,218.47,17.30271779]
[1731705616606,0.11420924,218.48,218.47,17.39639241]
[1731705617488,12.47453779,218.63,218.48,0.44465462]
[1731705617692,15.67613779,218.64,218.57,12.47453779]
[1731705618296,15.67613779,218.64,218.58,12.47453779]
[1731705619205,15.67613779,218.64,218.57,12.47453779]
[1731705620609,15.67613779,218.64,218.58,12.47453779]
[1731705620910,15.67583779,218.66,218.59,12.47453779]
[1731705621106,15.67583779,218.66,218.55,4.5755]
[1731705621107,15.67583779,218.66,218.6,12.47453779]
[1731705621815,15.67583779,218.66,218.61,12.47453779]
[1731705621816,3.2013,218.66,218.61,12.47453779]
[1731705622521,3.2013,218.66,218.57,0.12549]
[1731705622698,12.47453779,218.67,218.61,12.47453779]
[1731705623404,12.47453779,218.66,218.6,12.47453779]
[1731705623902,3.2013,218.66,218.6,12.47453779]
[1731705624104,3.6064591,218.68,218.64,12.47453779]
[1731705624289,3.6064591,218.68,218.63,12.47453779]
[1731705624490,16.08099689,218.68,218.61,12.47453779]
[1731705624690,12.47453779,218.67,218.6,12.47453779]
[1731705624990,16.08099689,218.68,218.61,12.47453779]
[1731705625194,12.47453779,218.66,218.6,12.47453779]
[1731705625795,12.47453779,218.67,218.6,12.47453779]
[1731705626010,16.08099689,218.68,218.61,12.47453779]
[1731705626810,12.47453779,218.67,218.6,12.47453779]
[1731705627419,12.47453779,218.64,218.59,42.8787]
[1731705627742,12.47453779,218.6,218.54,42.6334]
[1731705627892,24.08349689,218.68,218.54,42.6334]
[1731705627893,12.47453779,218.62,218.55,12.56821241]
[1731705628095,24.08349689,218.68,218.55,12.56821241]
[1731705628096,12.47453779,218.63,218.56,12.47453779]
[1731705628309,12.47453779,218.62,218.55,0.09367462]
[1731705628495,12.47453779,218.61,218.55,0.09367462]
[1731705628696,15.67643779,218.62,218.55,12.56821241]
[1731705629294,12.47453779,218.61,218.55,0.09367462]
[1731705629509,12.47453779,218.61,218.55,0.34465462]
[1731705629708,12.47453779,218.61,218.55,12.81919241]
[1731705630103,15.67643779,218.62,218.56,12.47453779]
[1731705630517,3.2019,218.62,218.57,12.47453779]
[1731705632431,3.91940224,218.63,218.57,12.47453779]
[1731705633125,0.4053591,218.68,218.61,12.47453779]
[1731705633325,12.87989689,218.68,218.61,12.47453779]
[1731705633623,12.87989689,218.68,218.55,13.27548]
[1731705633624,3.4011,218.67,218.6,0.09367462]
[1731705633921,15.87563779,218.67,218.6,12.56821241]
[1731705634503,15.77563779,218.67,218.6,12.56821241]
[1731705634725,15.87563779,218.67,218.6,17.14261241]
[1731705635024,15.87563779,218.67,218.61,12.47453779]
[1731705635707,0.4053591,218.68,218.64,12.47453779]
[1731705636113,0.4053591,218.68,218.66,12.47453779]
[1731705636308,0.4053591,218.68,218.65,12.47453779]
[1731705637430,0.4053591,218.68,218.65,0.09367462]
[1731705637631,0.4053591,218.68,218.65,12.56821241]
[1731705637827,0.1,218.77,218.71,0.12549]
[1731705638125,0.1,218.74,218.68,45.8775]
[1731705638328,0.1,218.75,218.69,0.09367462]
[1731705638513,0.2,218.77,218.7,7.42974674]
[1731705638714,0.1,218.77,218.7,7.42974674]
[1731705638920,0.1,218.77,218.72,0.09367462]
[1731705639435,12.67453779,218.79,218.73,7.33607212]
[1731705639606,0.1,218.79,218.74,0.09367462]
[1731705640225,0.1,218.79,218.75,12.47453779]
[1731705640702,0.1,218.81,218.76,12.47453779]
[1731705640906,0.1,218.79,218.76,7.472471]
[1731705641121,0.1,218.79,218.74,12.47453779]
[1731705641716,0.1,218.79,218.73,12.56821241]
[1731705642419,0.1,218.79,218.74,12.47453779]
[1731705643436,0.1,218.8,218.75,0.09367462]
[1731705643611,0.1,218.83,218.78,12.47453779]
[1731705644929,12.47453779,218.82,218.76,4.571]
[1731705645129,12.47453779,218.81,218.75,0.09367462]
[1731705645429,0.1,218.82,218.77,12.47453779]
[1731705645729,0.1,218.82,218.78,12.47453779]
[1731705646110,0.1,218.82,218.76,12.47453779]
[1731705646111,0.2,218.82,218.76,12.47453779]
[1731705646305,12.67453779,218.82,218.75,28.47433779]
[1731705646617,0.1,218.79,218.75,15.9998]
[1731705646823,0.1,218.79,218.75,11.4285]
[1731705648035,12.57453779,218.8,218.75,11.4285]
[1731705648036,0.1,218.8,218.75,11.4285]
[1731705648219,0.1,218.79,218.75,23.90303779]
[1731705648424,0.1,218.8,218.75,23.90303779]
[1731705648814,0.1,218.79,218.75,23.90303779]
[1731705649023,0.1,218.79,218.75,11.4285]
[1731705649931,0.2,218.79,218.75,11.4285]
[1731705650312,12.67453779,218.79,218.72,19.93378693]
[1731705650633,0.2,218.72,218.64,35.34233779]
[1731705650947,0.1,218.74,218.66,16.0062]
[1731705651235,13.216,218.77,218.66,16.0062]
[1731705651236,0.1,218.7,218.66,18.88006677]
[1731705651421,0.1,218.7,218.66,11.4329]
[1731705652016,12.57453779,218.73,218.66,11.4329]
[1731705652017,0.1,218.72,218.66,28.48073779]
[1731705652238,0.1,218.72,218.67,12.56821241]
[1731705652458,0.1,218.72,218.67,0.09367462]
[1731705652744,0.2,218.7,218.66,18.88006677]
[1731705653037,12.67453779,218.72,218.66,16.0062]
[1731705653241,0.1,218.7,218.66,16.0062]
[1731705653736,3.2002,218.74,218.67,7.44716677]
[1731705653737,0.2,218.74,218.67,7.44716677]
[1731705653946,0.1,218.71,218.66,28.48073779]
[1731705654319,0.1,218.72,218.66,28.48073779]
[1731705654528,0.1,218.73,218.68,12.47453779]
[1731705654739,0.1,218.72,218.67,12.47453779]
[1731705655134,0.1,218.72,218.66,35.89413952]
[1731705655644,0.1,218.72,218.66,23.41960173]
[1731705656254,0.1,218.72,218.68,4.5728]
[1731705657345,0.1,218.72,218.66,16.0062]
[1731705658638,0.1,218.7,218.66,16.0062]
[1731705659022,0.2,218.62,218.57,11.4379]
[1731705659230,12.67453779,218.62,218.57,16.013]
[1731705659533,12.47453779,218.61,218.57,16.013]
[1731705660342,12.47453779,218.61,218.57,11.4379]
[1731705661334,3.2015,218.65,218.52,22.8812]
[1731705661335,0.1,218.59,218.53,23.91453779]
[1731705661523,12.47453779,218.58,218.53,16.0159]
[1731705661732,0.1,218.56,218.53,16.0159]
[1731705662049,12.47453779,218.55,218.51,4.5763]
[1731705662430,0.2,218.63,218.54,12.47453779]
[1731705662751,42.6736,218.66,218.51,16.0174]
[1731705662752,0.1,218.65,218.52,0.09367462]
[1731705662945,0.1,218.67,218.64,12.47453779]
[1731705663122,12.4287,218.71,218.66,12.47453779]
[1731705663323,0.1,218.7,218.64,12.47453779]
[1731705663542,0.1,218.68,218.64,0.09367462]
[1731705664127,0.1,218.68,218.63,12.56821241]
[1731705664645,0.1,218.68,218.64,12.47453779]
[1731705664949,0.1,218.7,218.67,12.47453779]
[1731705665149,0.1,218.72,218.68,12.47453779]
[1731705665441,0.2,218.75,218.7,12.47453779]
[1731705665829,0.1,218.72,218.7,12.47453779]
[1731705666037,0.1,218.72,218.69,12.47453779]
[1731705666541,0.1,218.72,218.7,12.47453779]
[1731705667247,0.1,218.75,218.71,12.47453779]
[1731705668229,0.1,218.76,218.71,12.47453779]
[1731705668429,0.1,218.75,218.71,12.47453779]
[1731705668741,0.1,218.76,218.71,17.04673779]
[1731705668927,0.1,218.75,218.71,17.04673779]
[1731705669133,0.1,218.76,218.71,17.04673779]
[1731705669445,0.1,218.75,218.71,17.04673779]
[1731705669641,0.1,218.78,218.74,12.47453779]
[1731705669854,0.2,218.8,218.75,12.47453779]
[1731705670148,0.2,218.8,218.74,12.47453779]
[1731705670550,30.8921,218.87,218.75,12.69370241]
[1731705670551,12.67453779,218.82,218.75,12.69370241]
[1731705670952,0.2,218.82,218.75,12.69370241]
[1731705671245,0.1,218.8,218.75,12.47453779]
[1731705671466,0.1,218.8,218.73,0.12549]
[1731705671467,12.47453779,218.76,218.73,0.12549]
[1731705671748,0.1,218.77,218.72,11.4301]
[1731705671925,0.1,218.77,218.72,16.0021]
[1731705672326,12.57453779,218.77,218.72,16.0021]
[1731705672532,0.1,218.78,218.72,16.0021]
[1731705673247,12.67453779,218.8,218.72,28.47663779]
[1731705673443,12.57453779,218.8,218.73,0.12549]
[1731705673750,12.57453779,218.8,218.74,4.5716]
[1731705673930,12.57453779,218.8,218.74,16.0006]
[1731705674245,12.57453779,218.82,218.75,0.34465462]
[1731705674457,12.57453779,218.82,218.75,0.21916462]
[1731705674753,0.1,218.8,218.75,0.21916462]
[1731705675047,0.1,218.82,218.76,12.47453779]
[1731705675270,12.57453779,218.84,218.77,0.09367462]
[1731705675547,12.47453779,218.82,218.77,0.09367462]
[1731705675729,12.47453779,218.82,218.78,4.5708]
[1731705676561,0.1,218.83,218.78,15.9978]
[1731705677850,0.1,218.83,218.79,0.09367462]
[1731705678055,12.47453779,218.84,218.79,0.09367462]
[1731705678256,0.1,218.83,218.78,15.9978]
[1731705678642,0.1,218.83,218.79,0.09367462]
[1731705678952,12.57453779,218.85,218.79,0.09367462]
[1731705679466,0.1,218.82,218.79,0.09367462]
[1731705679752,0.1,218.83,218.8,11.4259]
[1731705679954,0.1,218.85,218.8,11.4259]
[1731705680134,0.1,218.85,218.81,0.09367462]
[1731705680546,0.1,218.87,218.81,0.09367462]
[1731705681352,0.1,218.87,218.82,12.47453779]
[1731705681745,0.1,218.87,218.83,4.5697]
[1731705682344,12.57453779,218.87,218.83,4.5697]
[1731705683752,12.47453779,218.85,218.82,11.4249]
[1731705683957,0.4330042,218.9,191.28,102.1014668]
[1731705683958,0.1,218.83,218.77,23.90163779]
[1731705684256,0.1,218.83,218.78,4.5708]
[1731705684560,0.1,218.83,218.78,28.47233779]
[1731705684745,12.47453779,218.84,218.81,0.09367462]
[1731705685141,12.47453779,218.84,218.78,38.8518]
[1731705685142,12.47453779,218.84,218.79,0.12549]
[1731705685345,0.1,218.86,218.8,0.12549]
[1731705685549,0.2,218.88,218.8,0.12549]
[1731705685845,0.2,218.88,218.81,4.5701]
[1731705686041,0.1,218.86,218.81,4.5701]
[1731705686757,0.1,218.86,218.81,15.9955]
[1731705688638,0.1,218.86,218.83,15.994]
[1731705688837,0.1,218.88,218.83,15.994]
[1731705691449,0.1,218.88,218.83,24.16826304]
[1731705692957,0.1,218.88,218.84,16.08687462]
[1731705693167,0.1,218.88,218.84,15.9932]